[Event "Titled Tuesday Blitz January 03 Early 2023"]
[White "Cappai, Davide"]
[Black "Williams, Simon K"]
[WhiteFideId "813338"]
[BlackFideId "404454"]
[WhiteElo "2140"]
[BlackElo "2465"]
[Result "1/2-1/2"]
[Round "03"]
[TimeControl "180+2"]
[Date "2023.01.03"]
[WhiteClock "0:00:21"]
[BlackClock "0:00:16"]

1. e4 {[%clk 0:03:00]}  c5 {[%clk 0:02:59]} 2. Nf3 {[%clk 0:03:01]}  d6 {[%clk 0:02:59]} 3. d4 {[%clk 0:03:01]}  cxd4 {[%clk 0:02:58]} 4. Qxd4 {[%clk 0:03:02]}  Nc6 {[%clk 0:02:56]} 5. Bb5 {[%clk 0:03:02]}  Bd7 {[%clk 0:02:55]} 6. Bxc6 {[%clk 0:03:02]}  Bxc6 {[%clk 0:02:56]} 7. c4 {[%clk 0:03:02]}  f5 {[%clk 0:02:45]} 8. exf5 {[%clk 0:02:59]}  Qa5+ {[%clk 0:02:45]} 9. Nc3 {[%clk 0:02:58]}  Qxf5 {[%clk 0:02:44]} 10. Qf4 {[%clk 0:02:24]}  Qxf4 {[%clk 0:02:41]} 11. Bxf4 {[%clk 0:02:25]}  Bxf3 {[%clk 0:02:38]} 12. gxf3 {[%clk 0:02:25]}  Nf6 {[%clk 0:02:34]} 13. Ke2 {[%clk 0:02:26]}  Rc8 {[%clk 0:02:32]} 14. b3 {[%clk 0:02:26]}  g6 {[%clk 0:02:30]} 15. Rad1 {[%clk 0:02:24]}  Bg7 {[%clk 0:02:29]} 16. Be3 {[%clk 0:02:24]}  a6 {[%clk 0:02:28]} 17. Nd5 {[%clk 0:02:21]}  Kf7 {[%clk 0:02:15]} 18. h4 {[%clk 0:02:20]}  b5 {[%clk 0:02:13]} 19. Nxf6 {[%clk 0:01:46]}  Bxf6 {[%clk 0:02:10]} 20. cxb5 {[%clk 0:01:45]}  axb5 {[%clk 0:02:09]} 21. Rd2 {[%clk 0:01:45]}  h5 {[%clk 0:02:01]} 22. Bd4 {[%clk 0:01:39]}  Bxd4 {[%clk 0:01:46]} 23. Rxd4 {[%clk 0:01:40]}  Rc2+ {[%clk 0:01:46]} 24. Rd2 {[%clk 0:01:40]}  Rhc8 {[%clk 0:01:46]} 25. Ra1 {[%clk 0:01:20]}  R2c3 {[%clk 0:01:37]} 26. Rb2 {[%clk 0:01:16]}  b4 {[%clk 0:01:15]} 27. Rd2 {[%clk 0:01:11]}  Ra8 {[%clk 0:01:10]} 28. Rad1 {[%clk 0:01:07]}  Kf6 {[%clk 0:01:02]} 29. Rb2 {[%clk 0:01:07]}  Ra5 {[%clk 0:00:57]} 30. Rd4 {[%clk 0:01:06]}  Rb5 {[%clk 0:00:57]} 31. Rbd2 {[%clk 0:01:05]}  Ke6 {[%clk 0:00:55]} 32. Rb2 {[%clk 0:00:56]}  Kd7 {[%clk 0:00:53]} 33. Rbd2 {[%clk 0:00:55]}  Kc6 {[%clk 0:00:52]} 34. R2d3 {[%clk 0:00:49]}  Rc2+ {[%clk 0:00:48]} 35. Rd2 {[%clk 0:00:49]}  Rxd2+ {[%clk 0:00:48]} 36. Rxd2 {[%clk 0:00:47]}  e5 {[%clk 0:00:47]} 37. Ke3 {[%clk 0:00:45]}  Rc5 {[%clk 0:00:46]} 38. f4 {[%clk 0:00:34]}  Rc3+ {[%clk 0:00:46]} 39. Ke4 {[%clk 0:00:35]}  exf4 {[%clk 0:00:29]} 40. Kxf4 {[%clk 0:00:36]}  d5 {[%clk 0:00:26]} 41. Kg5 {[%clk 0:00:36]}  Rh3 {[%clk 0:00:25]} 42. f4 {[%clk 0:00:31]}  Rg3+ {[%clk 0:00:25]} 43. Kf6 {[%clk 0:00:31]}  Rg4 {[%clk 0:00:25]} 44. Ke5 {[%clk 0:00:32]}  Rg1 {[%clk 0:00:21]} 45. Rc2+ {[%clk 0:00:30]}  Kb5 {[%clk 0:00:19]} 46. Kxd5 {[%clk 0:00:31]}  Rg4 {[%clk 0:00:19]} 47. Ke5 {[%clk 0:00:31]}  Rxh4 {[%clk 0:00:19]} 48. Rc8 {[%clk 0:00:22]}  Rg4 {[%clk 0:00:19]} 49. Rb8+ {[%clk 0:00:22]}  Kc5 {[%clk 0:00:19]} 50. Rc8+ {[%clk 0:00:23]}  Kb5 {[%clk 0:00:19]} 51. Rb8+ {[%clk 0:00:19]}  Kc5 {[%clk 0:00:19]} 52. Rc8+ {[%clk 0:00:20]}  Kb6 {[%clk 0:00:19]} 53. Rb8+ {[%clk 0:00:20]}  Kc7 {[%clk 0:00:17]} 54. Rxb4 {[%clk 0:00:20]}  h4 {[%clk 0:00:17]} 55. Rc4+ {[%clk 0:00:21]}  Kb6 {[%clk 0:00:17]} 56. Rc2 {[%clk 0:00:20]}  Kb5 {[%clk 0:00:17]} 57. a3 {[%clk 0:00:20]}  Rg3 {[%clk 0:00:17]} 58. Rh2 {[%clk 0:00:21]}  h3 {[%clk 0:00:17]} 59. f5 {[%clk 0:00:19]}  gxf5 {[%clk 0:00:16]} 60. Kxf5 {[%clk 0:00:19]}  Rxb3 {[%clk 0:00:17]} 61. Kg4 {[%clk 0:00:20]}  Rxa3 {[%clk 0:00:17]} 62. Rxh3 {[%clk 0:00:21]}  Rxh3 {[%clk 0:00:16]} 63. Kxh3 {[%clk 0:00:21]} 1/2-1/2


[Site "https://www.chess.com"]

[Event "Titled Tuesday Blitz January 03 Early 2023"]
[White "Fiorito, Joaquin"]
[Black "Kanakaris, Georgios"]
[WhiteFideId "180173"]
[BlackFideId "4209460"]
[WhiteElo "2405"]
[BlackElo "2391"]
[Result "1/2-1/2"]
[Round "03"]
[TimeControl "180+2"]
[Date "2023.01.03"]
[WhiteClock "0:00:13"]
[BlackClock "0:00:03"]

1. d4 {[%clk 0:03:00]}  Nf6 {[%clk 0:02:58]} 2. Nc3 {[%clk 0:03:01]}  d5 {[%clk 0:02:58]} 3. Bf4 {[%clk 0:03:01]}  e6 {[%clk 0:02:58]} 4. Nb5 {[%clk 0:03:01]}  Na6 {[%clk 0:02:57]} 5. e3 {[%clk 0:03:01]}  Be7 {[%clk 0:02:55]} 6. Nf3 {[%clk 0:03:01]}  O-O {[%clk 0:02:55]} 7. a3 {[%clk 0:03:00]}  Ne4 {[%clk 0:02:50]} 8. h3 {[%clk 0:02:49]}  c6 {[%clk 0:02:45]} 9. Nc3 {[%clk 0:02:49]}  Nxc3 {[%clk 0:02:43]} 10. bxc3 {[%clk 0:02:50]}  Qa5 {[%clk 0:02:44]} 11. Qd2 {[%clk 0:02:46]}  c5 {[%clk 0:02:38]} 12. Ne5 {[%clk 0:02:43]}  f6 {[%clk 0:02:25]} 13. Nf3 {[%clk 0:02:35]}  Bd7 {[%clk 0:02:23]} 14. Bd3 {[%clk 0:02:33]}  Rfc8 {[%clk 0:02:09]} 15. O-O {[%clk 0:02:25]}  Ba4 {[%clk 0:01:48]} 16. Rfc1 {[%clk 0:02:08]}  cxd4 {[%clk 0:01:35]} 17. cxd4 {[%clk 0:02:06]}  Qxd2 {[%clk 0:01:33]} 18. Nxd2 {[%clk 0:02:07]}  b5 {[%clk 0:01:27]} 19. e4 {[%clk 0:02:03]}  Rc6 {[%clk 0:01:17]} 20. exd5 {[%clk 0:02:00]}  exd5 {[%clk 0:01:18]} 21. Nb3 {[%clk 0:01:53]}  Bd6 {[%clk 0:01:09]} 22. Na5 {[%clk 0:01:40]}  Rb6 {[%clk 0:00:54]} 23. Bxd6 {[%clk 0:01:40]}  Rxd6 {[%clk 0:00:55]} 24. Re1 {[%clk 0:01:35]}  Kf7 {[%clk 0:00:44]} 25. Rab1 {[%clk 0:01:34]}  Nc7 {[%clk 0:00:40]} 26. Nb7 {[%clk 0:01:33]}  Rc6 {[%clk 0:00:24]} 27. Nc5 {[%clk 0:01:33]}  Ne6 {[%clk 0:00:17]} 28. Nxa4 {[%clk 0:01:09]}  bxa4 {[%clk 0:00:14]} 29. Rb4 {[%clk 0:01:04]}  a5 {[%clk 0:00:12]} 30. Rxa4 {[%clk 0:01:03]}  Nf4 {[%clk 0:00:06]} 31. Rb1 {[%clk 0:00:54]}  Nxd3 {[%clk 0:00:07]} 32. cxd3 {[%clk 0:00:55]}  Rc3 {[%clk 0:00:06]} 33. Rb5 {[%clk 0:00:55]}  Rxd3 {[%clk 0:00:06]} 34. Rxd5 {[%clk 0:00:55]}  Rd1+ {[%clk 0:00:04]} 35. Kh2 {[%clk 0:00:55]}  Rb8 {[%clk 0:00:04]} 36. Raxa5 {[%clk 0:00:51]}  Rb2 {[%clk 0:00:05]} 37. Rf5 {[%clk 0:00:46]}  g6 {[%clk 0:00:04]} 38. Rf3 {[%clk 0:00:46]}  f5 {[%clk 0:00:05]} 39. Ra7+ {[%clk 0:00:45]}  Kf6 {[%clk 0:00:05]} 40. Rxh7 {[%clk 0:00:45]}  Rxd4 {[%clk 0:00:04]} 41. Ra7 {[%clk 0:00:42]}  Ra2 {[%clk 0:00:05]} 42. Ra6+ {[%clk 0:00:42]}  Kf7 {[%clk 0:00:04]} 43. Rg3 {[%clk 0:00:39]}  Rxf2 {[%clk 0:00:02]} 44. Rgxg6 {[%clk 0:00:39]}  Rdd2 {[%clk 0:00:03]} 45. Raf6+ {[%clk 0:00:38]}  Ke7 {[%clk 0:00:03]} 46. Ra6 {[%clk 0:00:38]}  Kf7 {[%clk 0:00:04]} 47. Kg1 {[%clk 0:00:28]}  f4 {[%clk 0:00:04]} 48. Rg4 {[%clk 0:00:27]}  Ra2 {[%clk 0:00:03]} 49. Ra4 {[%clk 0:00:26]}  f3 {[%clk 0:00:03]} 50. Raf4+ {[%clk 0:00:26]}  Ke6 {[%clk 0:00:03]} 51. Rxf3 {[%clk 0:00:27]}  Rxf3 {[%clk 0:00:03]} 52. gxf3 {[%clk 0:00:28]}  Rxa3 {[%clk 0:00:04]} 53. Kg2 {[%clk 0:00:29]}  Kf5 {[%clk 0:00:04]} 54. Kg3 {[%clk 0:00:29]}  Ra1 {[%clk 0:00:04]} 55. Rb4 {[%clk 0:00:25]}  Rg1+ {[%clk 0:00:05]} 56. Kf2 {[%clk 0:00:26]}  Rh1 {[%clk 0:00:05]} 57. Kg2 {[%clk 0:00:26]}  Rd1 {[%clk 0:00:05]} 58. h4 {[%clk 0:00:26]}  Kg6 {[%clk 0:00:03]} 59. Rb5 {[%clk 0:00:24]}  Re1 {[%clk 0:00:01]} 60. Kh3 {[%clk 0:00:23]}  Rg1 {[%clk 0:00:01]} 61. f4 {[%clk 0:00:19]}  Rf1 {[%clk 0:00:02]} 62. Rg5+ {[%clk 0:00:18]}  Kh6 {[%clk 0:00:02]} 63. Kg3 {[%clk 0:00:19]}  Rg1+ {[%clk 0:00:03]} 64. Kf3 {[%clk 0:00:19]}  Rh1 {[%clk 0:00:03]} 65. Kg4 {[%clk 0:00:20]}  Rh2 {[%clk 0:00:02]} 66. Rb5 {[%clk 0:00:18]}  Rg2+ {[%clk 0:00:01]} 67. Kf5 {[%clk 0:00:19]}  Rh2 {[%clk 0:00:01]} 68. Rb6+ {[%clk 0:00:17]}  Kg7 {[%clk 0:00:01]} 69. Kg4 {[%clk 0:00:15]}  Rg2+ {[%clk 0:00:02]} 70. Kf3 {[%clk 0:00:15]}  Rh2 {[%clk 0:00:02]} 71. Kg3 {[%clk 0:00:16]}  Rh1 {[%clk 0:00:03]} 72. f5 {[%clk 0:00:15]}  Rg1+ {[%clk 0:00:02]} 73. Kf3 {[%clk 0:00:15]}  Kf7 {[%clk 0:00:01]} 74. h5 {[%clk 0:00:14]}  Kg7 {[%clk 0:00:02]} 75. h6+ {[%clk 0:00:14]}  Kf7 {[%clk 0:00:02]} 76. Kf4 {[%clk 0:00:15]}  Rh1 {[%clk 0:00:02]} 77. h7 {[%clk 0:00:15]}  Rxh7 {[%clk 0:00:01]} 78. Rb7+ {[%clk 0:00:15]}  Kf6 {[%clk 0:00:02]} 79. Rb6+ {[%clk 0:00:13]}  Kf7 {[%clk 0:00:03]} 80. Rb7+ {[%clk 0:00:13]}  Kf6 {[%clk 0:00:03]} 81. Rb6+ {[%clk 0:00:13]}  Kf7 {[%clk 0:00:03]} 1/2-1/2


[Site "https://www.chess.com"]

[Event "Titled Tuesday Blitz January 03 Early 2023"]
[White "Karas, Marek"]
[Black "Maksimovic, Bojan"]
[WhiteFideId "14928558"]
[BlackFideId "14408120"]
[WhiteElo "2227"]
[BlackElo "2486"]
[Result "0-1"]
[Round "03"]
[TimeControl "180+2"]
[Date "2023.01.03"]
[WhiteClock "0:00:04"]
[BlackClock "0:00:50"]

1. d4 {[%clk 0:02:59]}  Nf6 {[%clk 0:02:59]} 2. Nf3 {[%clk 0:02:58]}  d6 {[%clk 0:02:59]} 3. Nc3 {[%clk 0:02:57]}  Bf5 {[%clk 0:02:57]} 4. e3 {[%clk 0:02:51]}  h6 {[%clk 0:02:48]} 5. Bd3 {[%clk 0:02:51]}  Bxd3 {[%clk 0:02:42]} 6. Qxd3 {[%clk 0:02:52]}  Nbd7 {[%clk 0:02:38]} 7. e4 {[%clk 0:02:51]}  e5 {[%clk 0:02:35]} 8. O-O {[%clk 0:02:48]}  Be7 {[%clk 0:02:34]} 9. dxe5 {[%clk 0:02:37]}  dxe5 {[%clk 0:02:34]} 10. Be3 {[%clk 0:02:28]}  O-O {[%clk 0:02:29]} 11. Nd5 {[%clk 0:02:24]}  c6 {[%clk 0:02:22]} 12. Nxf6+ {[%clk 0:02:21]}  Bxf6 {[%clk 0:02:20]} 13. Rfd1 {[%clk 0:02:11]}  Nb6 {[%clk 0:02:18]} 14. Bxb6 {[%clk 0:02:03]}  axb6 {[%clk 0:02:04]} 15. Qxd8 {[%clk 0:01:59]}  Rfxd8 {[%clk 0:02:03]} 16. a3 {[%clk 0:01:45]}  Kf8 {[%clk 0:02:01]} 17. Kf1 {[%clk 0:01:42]}  Ke7 {[%clk 0:02:01]} 18. Ke2 {[%clk 0:01:41]}  b5 {[%clk 0:02:00]} 19. Rxd8 {[%clk 0:01:37]}  Rxd8 {[%clk 0:02:01]} 20. Rd1 {[%clk 0:01:35]}  Ra8 {[%clk 0:01:59]} 21. Nd2 {[%clk 0:01:28]}  Ke6 {[%clk 0:01:58]} 22. Nb3 {[%clk 0:01:20]}  Be7 {[%clk 0:01:57]} 23. Ra1 {[%clk 0:01:14]}  g6 {[%clk 0:01:55]} 24. f3 {[%clk 0:01:13]}  f5 {[%clk 0:01:54]} 25. Nd2 {[%clk 0:00:58]}  h5 {[%clk 0:01:47]} 26. h3 {[%clk 0:00:55]}  h4 {[%clk 0:01:45]} 27. Nb3 {[%clk 0:00:55]}  b6 {[%clk 0:01:45]} 28. Nd2 {[%clk 0:00:54]}  c5 {[%clk 0:01:22]} 29. c4 {[%clk 0:00:38]}  bxc4 {[%clk 0:01:10]} 30. Nxc4 {[%clk 0:00:32]}  b5 {[%clk 0:01:00]} 31. Ne3 {[%clk 0:00:27]}  c4 {[%clk 0:00:58]} 32. Nd5 {[%clk 0:00:25]}  Bd6 {[%clk 0:00:58]} 33. Rc1 {[%clk 0:00:21]}  Ra7 {[%clk 0:00:51]} 34. Nb6 {[%clk 0:00:18]}  Bc5 {[%clk 0:00:49]} 35. Nd5 {[%clk 0:00:18]}  Bd4 {[%clk 0:00:50]} 36. Rc2 {[%clk 0:00:18]}  Rf7 {[%clk 0:00:50]} 37. Ke1 {[%clk 0:00:16]}  g5 {[%clk 0:00:50]} 38. Nb4 {[%clk 0:00:13]}  fxe4 {[%clk 0:00:50]} 39. fxe4 {[%clk 0:00:13]}  Rf4 {[%clk 0:00:51]} 40. Re2 {[%clk 0:00:13]}  g4 {[%clk 0:00:51]} 41. hxg4 {[%clk 0:00:13]}  Rxg4 {[%clk 0:00:51]} 42. Nd5 {[%clk 0:00:12]}  Bxb2 {[%clk 0:00:51]} 43. Nc7+ {[%clk 0:00:12]}  Kd7 {[%clk 0:00:51]} 44. Nxb5 {[%clk 0:00:13]}  Bd4 {[%clk 0:00:51]} 45. Kd2 {[%clk 0:00:06]}  Kc6 {[%clk 0:00:52]} 46. a4 {[%clk 0:00:06]}  Kc5 {[%clk 0:00:52]} 47. Kc2 {[%clk 0:00:06]}  Rg3 {[%clk 0:00:52]} 48. Kb1 {[%clk 0:00:04]}  Kb4 {[%clk 0:00:52]} 49. Ra2 {[%clk 0:00:04]}  c3 {[%clk 0:00:50]} 0-1


[Site "https://www.chess.com"]

[Event "Titled Tuesday Blitz January 03 Early 2023"]
[White "Liyanage, Ranindu Dilshan"]
[Black "Blanco Acevedo, Cristobal Jose"]
[WhiteFideId "9915834"]
[BlackFideId "3900525"]
[WhiteElo "2342"]
[BlackElo "2310"]
[Result "1-0"]
[Round "03"]
[TimeControl "180+2"]
[Date "2023.01.03"]
[WhiteClock "0:00:26"]
[BlackClock "0:00:01"]

1. e4 {[%clk 0:02:48]}  c5 {[%clk 0:02:59]} 2. Nc3 {[%clk 0:02:48]}  e6 {[%clk 0:02:57]} 3. g3 {[%clk 0:02:44]}  Nc6 {[%clk 0:02:55]} 4. Bg2 {[%clk 0:02:43]}  d6 {[%clk 0:02:54]} 5. Nge2 {[%clk 0:02:41]}  Nd4 {[%clk 0:02:46]} 6. Nxd4 {[%clk 0:02:38]}  cxd4 {[%clk 0:02:46]} 7. Ne2 {[%clk 0:02:39]}  e5 {[%clk 0:02:46]} 8. O-O {[%clk 0:02:37]}  Ne7 {[%clk 0:02:45]} 9. d3 {[%clk 0:02:34]}  g6 {[%clk 0:02:44]} 10. f4 {[%clk 0:02:34]}  Bg7 {[%clk 0:02:42]} 11. c3 {[%clk 0:02:33]}  dxc3 {[%clk 0:02:31]} 12. bxc3 {[%clk 0:02:34]}  O-O {[%clk 0:02:28]} 13. Ba3 {[%clk 0:02:33]}  Re8 {[%clk 0:02:20]} 14. h3 {[%clk 0:02:22]}  exf4 {[%clk 0:01:52]} 15. gxf4 {[%clk 0:02:12]}  f5 {[%clk 0:01:50]} 16. Kh1 {[%clk 0:01:57]}  Kh8 {[%clk 0:01:49]} 17. Nd4 {[%clk 0:01:47]}  Nc6 {[%clk 0:01:21]} 18. Nb5 {[%clk 0:01:40]}  Bf8 {[%clk 0:01:10]} 19. c4 {[%clk 0:01:28]}  a6 {[%clk 0:01:00]} 20. Nc3 {[%clk 0:01:27]}  Bg7 {[%clk 0:00:59]} 21. Nd5 {[%clk 0:01:23]}  Nd4 {[%clk 0:00:49]} 22. Rb1 {[%clk 0:01:20]}  fxe4 {[%clk 0:00:47]} 23. dxe4 {[%clk 0:01:20]}  Qh4 {[%clk 0:00:47]} 24. Qd3 {[%clk 0:01:13]}  b5 {[%clk 0:00:35]} 25. cxb5 {[%clk 0:01:07]}  axb5 {[%clk 0:00:34]} 26. Bb2 {[%clk 0:01:05]}  Ra4 {[%clk 0:00:23]} 27. Nb6 {[%clk 0:00:51]}  Be6 {[%clk 0:00:18]} 28. Nxa4 {[%clk 0:00:47]}  Bc4 {[%clk 0:00:18]} 29. Qd2 {[%clk 0:00:33]}  Bxf1 {[%clk 0:00:15]} 30. Rxf1 {[%clk 0:00:34]}  Rxe4 {[%clk 0:00:02]} 31. Bxe4 {[%clk 0:00:28]}  Qxh3+ {[%clk 0:00:02]} 32. Kg1 {[%clk 0:00:28]}  Qg3+ {[%clk 0:00:01]} 33. Bg2 {[%clk 0:00:26]} 1-0


[Site "https://www.chess.com"]

[Event "Titled Tuesday Blitz January 03 Early 2023"]
[White "Averjanov, Alexey"]
[Black "Zhuravlev, Alexey"]
[WhiteFideId "14109867"]
[BlackFideId "4164199"]
[WhiteElo "2399"]
[BlackElo "2359"]
[Result "1-0"]
[Round "03"]
[TimeControl "180+2"]
[Date "2023.01.03"]
[WhiteClock "0:01:07"]
[BlackClock "0:00:03"]

1. d4 {[%clk 0:03:00]}  Nf6 {[%clk 0:02:20]} 2. c4 {[%clk 0:02:59]}  g6 {[%clk 0:02:20]} 3. Nc3 {[%clk 0:02:58]}  Bg7 {[%clk 0:02:21]} 4. e4 {[%clk 0:02:58]}  d6 {[%clk 0:02:22]} 5. Be2 {[%clk 0:02:58]}  O-O {[%clk 0:02:23]} 6. Nf3 {[%clk 0:02:58]}  e5 {[%clk 0:02:22]} 7. O-O {[%clk 0:02:58]}  Nc6 {[%clk 0:02:22]} 8. d5 {[%clk 0:02:59]}  Ne7 {[%clk 0:02:22]} 9. Ne1 {[%clk 0:02:59]}  Nd7 {[%clk 0:01:53]} 10. Be3 {[%clk 0:02:58]}  f5 {[%clk 0:01:52]} 11. f3 {[%clk 0:02:59]}  f4 {[%clk 0:01:53]} 12. Bf2 {[%clk 0:02:59]}  g5 {[%clk 0:01:52]} 13. a4 {[%clk 0:03:00]}  a5 {[%clk 0:01:45]} 14. Nd3 {[%clk 0:02:59]}  b6 {[%clk 0:01:45]} 15. b4 {[%clk 0:03:00]}  axb4 {[%clk 0:01:41]} 16. Nxb4 {[%clk 0:03:00]}  Nf6 {[%clk 0:01:41]} 17. Nc6 {[%clk 0:03:00]}  Nxc6 {[%clk 0:01:27]} 18. dxc6 {[%clk 0:03:01]}  Be6 {[%clk 0:01:27]} 19. Nd5 {[%clk 0:03:01]}  g4 {[%clk 0:01:22]} 20. a5 {[%clk 0:03:00]}  bxa5 {[%clk 0:01:11]} 21. Bh4 {[%clk 0:03:00]}  gxf3 {[%clk 0:01:11]} 22. Bxf3 {[%clk 0:02:59]}  Kh8 {[%clk 0:01:09]} 23. Qa4 {[%clk 0:02:57]}  Qc8 {[%clk 0:01:04]} 24. Bxf6 {[%clk 0:02:49]}  Bxf6 {[%clk 0:01:03]} 25. Qb5 {[%clk 0:02:48]}  Bxd5 {[%clk 0:00:39]} 26. cxd5 {[%clk 0:02:47]}  Qa6 {[%clk 0:00:39]} 27. Rfb1 {[%clk 0:02:40]}  a4 {[%clk 0:00:29]} 28. Qxa6 {[%clk 0:02:31]}  Rxa6 {[%clk 0:00:28]} 29. Rb7 {[%clk 0:02:31]}  a3 {[%clk 0:00:24]} 30. Ra2 {[%clk 0:02:18]}  Rfa8 {[%clk 0:00:17]} 31. Be2 {[%clk 0:02:03]}  R6a7 {[%clk 0:00:17]} 32. Kf1 {[%clk 0:01:52]}  Kg7 {[%clk 0:00:15]} 33. Ke1 {[%clk 0:01:50]}  Kf8 {[%clk 0:00:15]} 34. Kd1 {[%clk 0:01:49]}  Bh4 {[%clk 0:00:14]} 35. Bg4 {[%clk 0:01:30]}  Bf2 {[%clk 0:00:13]} 36. Rxf2 {[%clk 0:01:26]}  a2 {[%clk 0:00:14]} 37. Rxa2 {[%clk 0:01:26]}  Rxa2 {[%clk 0:00:13]} 38. Rxc7 {[%clk 0:01:26]}  R2a7 {[%clk 0:00:13]} 39. Rb7 {[%clk 0:01:16]}  Rxb7 {[%clk 0:00:07]} 40. cxb7 {[%clk 0:01:17]}  Rb8 {[%clk 0:00:04]} 41. Bc8 {[%clk 0:01:17]}  Ke7 {[%clk 0:00:05]} 42. Ke2 {[%clk 0:01:07]}  Kd8 {[%clk 0:00:05]} 43. Kf3 {[%clk 0:01:07]}  h5 {[%clk 0:00:05]} 44. g3 {[%clk 0:01:06]}  fxg3 {[%clk 0:00:04]} 45. Kxg3 {[%clk 0:01:07]}  Ke7 {[%clk 0:00:02]} 46. Kh4 {[%clk 0:01:07]}  Kf6 {[%clk 0:00:03]} 47. Kxh5 {[%clk 0:01:07]} 1-0


[Site "https://www.chess.com"]

[Event "Titled Tuesday Blitz January 03 Early 2023"]
[White "Mortazavi, Ali"]
[Black "Csonka, Balazs"]
[WhiteFideId "401323"]
[BlackFideId "742910"]
[WhiteElo "2333"]
[BlackElo "2496"]
[Result "0-1"]
[Round "03"]
[TimeControl "180+2"]
[Date "2023.01.03"]
[WhiteClock "0:00:05"]
[BlackClock "0:00:03"]

1. e4 {[%clk 0:02:59]}  e5 {[%clk 0:02:57]} 2. Bc4 {[%clk 0:02:59]}  Nf6 {[%clk 0:02:54]} 3. d3 {[%clk 0:02:59]}  c6 {[%clk 0:02:51]} 4. Nf3 {[%clk 0:02:59]}  d5 {[%clk 0:02:47]} 5. Bb3 {[%clk 0:03:00]}  a5 {[%clk 0:02:42]} 6. a3 {[%clk 0:03:00]}  a4 {[%clk 0:02:32]} 7. Ba2 {[%clk 0:03:00]}  Bd6 {[%clk 0:02:32]} 8. Nc3 {[%clk 0:03:00]}  dxe4 {[%clk 0:02:29]} 9. dxe4 {[%clk 0:02:58]}  h6 {[%clk 0:02:21]} 10. h3 {[%clk 0:02:58]}  Qe7 {[%clk 0:02:19]} 11. O-O {[%clk 0:02:55]}  O-O {[%clk 0:02:14]} 12. Nh4 {[%clk 0:02:55]}  Kh7 {[%clk 0:02:07]} 13. Nf5 {[%clk 0:02:41]}  Bxf5 {[%clk 0:02:06]} 14. exf5 {[%clk 0:02:42]}  Nbd7 {[%clk 0:02:01]} 15. Re1 {[%clk 0:02:42]}  Nc5 {[%clk 0:01:57]} 16. Be3 {[%clk 0:02:41]}  Rad8 {[%clk 0:01:46]} 17. Qe2 {[%clk 0:02:41]}  e4 {[%clk 0:01:33]} 18. f4 {[%clk 0:01:57]}  b5 {[%clk 0:00:57]} 19. g4 {[%clk 0:01:56]}  Ncd7 {[%clk 0:00:39]} 20. g5 {[%clk 0:01:45]}  Ng8 {[%clk 0:00:39]} 21. Kh1 {[%clk 0:01:27]}  Bc5 {[%clk 0:00:32]} 22. Rg1 {[%clk 0:01:06]}  Kh8 {[%clk 0:00:18]} 23. Rg3 {[%clk 0:00:47]}  Bxe3 {[%clk 0:00:12]} 24. Qxe3 {[%clk 0:00:46]}  Qc5 {[%clk 0:00:07]} 25. Nxe4 {[%clk 0:00:26]}  Qxc2 {[%clk 0:00:05]} 26. f6 {[%clk 0:00:24]}  Rde8 {[%clk 0:00:03]} 27. fxg7+ {[%clk 0:00:20]}  Kxg7 {[%clk 0:00:04]} 28. gxh6+ {[%clk 0:00:20]}  Kh8 {[%clk 0:00:05]} 29. Re1 {[%clk 0:00:15]}  Ndf6 {[%clk 0:00:04]} 30. Bb1 {[%clk 0:00:11]}  Qxb2 {[%clk 0:00:04]} 31. Rxg8+ {[%clk 0:00:07]}  Rxg8 {[%clk 0:00:03]} 32. Ng5 {[%clk 0:00:07]}  Rxg5 {[%clk 0:00:01]} 33. Qxe8+ {[%clk 0:00:05]}  Nxe8 {[%clk 0:00:02]} 34. Rxe8+ {[%clk 0:00:06]}  Rg8 {[%clk 0:00:02]} 35. Re1 {[%clk 0:00:06]}  Qc3 {[%clk 0:00:02]} 36. Rf1 {[%clk 0:00:05]}  Qxh3# {[%clk 0:00:03]} 0-1


[Site "https://www.chess.com"]